fUST/lending_fUST_20240115
["ID","MTS","AMOUNT","RATE_DAILY","PERIOD"]
[311567725,1705252239132,-345.25858679,0.00024814,2]
[311567726,1705252239142,-155.13689846,0.00024815,2]
[311567727,1705252239151,-6938.96182926,0.00024815,2]
[311567728,1705252239160,-323.05791253,0.00024999,2]
[311567729,1705252239170,-197.96208464,0.00025,2]
[311567730,1705252239179,-14161.1957851,0.00025,2]
[311567731,1705252239188,-7193.15698043,0.00025297,2]
[311567732,1705252239198,-167.269157,0.00025498,2]
[311567733,1705252239207,-240.88594702,0.00026,2]
[311567734,1705252239216,-460.9594683,0.00027,2]
[311567735,1705252239226,-500.0,0.00027496,2]
[311567736,1705252239234,-500.0,0.00027496,2]
[311567737,1705252239244,-1291.3942081,0.00027497,2]
[311567738,1705252239253,-302.0,0.00027497,2]
[311567739,1705252239262,-469.94797818,0.00027497,2]
[311567740,1705252239272,-467.58133257,0.00027497,2]
[311567741,1705252239281,-155.69292077,0.00027497,2]
[311567742,1705252239291,-161.13707041,0.00027497,2]
[311567743,1705252239301,-307.21146084,0.00027497,2]
[311567744,1705252239310,-1955.20901272,0.00027497,5]
[311567745,1705252239319,-2521.80207579,0.00027497,2]
[311567746,1705252239328,-162.81745454,0.00027497,2]
[311567747,1705252239337,-156.97486621,0.00027497,2]
[311567748,1705252239347,-262.4633005,0.00027498,2]
[311567749,1705252239356,-500.0,0.00027498,2]
[311567750,1705252239365,-1050.84836442,0.00027498,2]
[311567751,1705252239374,-2086.67,0.00027499,2]
[311567752,1705252239384,-356.50449774,0.00027499,2]
[311567753,1705252239394,-24429.69,0.00027499,2]
[311567754,1705252239403,-726.34,0.00027499,2]
[311567755,1705252239412,-9497.87,0.00027499,2]
[311567756,1705252239422,-500.0,0.00027499,2]
[311567757,1705252239431,-43293.24,0.00027499,2]
[311567758,1705252239441,-500.0,0.00027499,2]
[311567759,1705252239450,-500.0,0.00027499,2]
[311567760,1705252239460,-500.0,0.00027499,2]
[311567761,1705252239470,-500.0,0.00027499,2]
[311567762,1705252239479,-500.0,0.00027499,2]
[311567763,1705252239488,-1065.8,0.00027499,2]
[311567764,1705252239497,-35213.13968525,0.000275,2]
[311567765,1705252239506,-227.97919358,0.00027673,2]
[311567766,1705252239515,-500.0,0.0002777,2]
[311567767,1705252239524,-500.0,0.0002777,2]
[311567768,1705252239533,-500.68191644,0.00027772,2]
[311567769,1705252239542,-2086.67,0.00027773,2]
[311567770,1705252239551,-24429.69,0.00027773,2]
[311567771,1705252239560,-726.34,0.00027773,2]
[311567772,1705252239569,-9497.87,0.00027773,2]
[311567773,1705252239578,-500.0,0.00027773,2]
[311567774,1705252239587,-43293.24,0.00027773,2]
[311567775,1705252239596,-500.0,0.00027773,2]
[311567776,1705252239605,-500.0,0.00027773,2]
[311567777,1705252239614,-500.0,0.00027773,2]
[311567778,1705252239625,-500.0,0.00027773,2]
[311567779,1705252239635,-500.0,0.00027773,2]
[311567780,1705252239645,-1065.8,0.00027773,2]
[311567781,1705252239654,-1343.655,0.00028,2]
[311567782,1705252239664,-500.0,0.00028044,2]
[311567783,1705252239673,-500.0,0.00028044,2]
[311567784,1705252239683,-500.0,0.00028046,2]
[311567785,1705252239692,-500.0,0.00028046,2]
[311567786,1705252239703,-600.7913174,0.00028046,2]
[311567787,1705252239713,-479.57917527,0.00028046,2]
[311567788,1705252239723,-500.0,0.00028046,2]
[311567789,1705252239733,-500.0,0.00028046,2]
[311567790,1705252239742,-608.76571439,0.00028046,2]
[311567791,1705252239752,-208.95252772,0.00028046,2]
[311567792,1705252239761,-500.5396141,0.00028046,2]
[311567793,1705252239770,-500.0,0.00028046,2]
[311567794,1705252239779,-398.44798952,0.00028046,2]
[311567795,1705252239788,-500.0,0.00028046,2]
[311567796,1705252239798,-445.90710311,0.00028046,2]
[311567797,1705252239807,-500.0,0.00028046,2]
[311567798,1705252239816,-2086.67,0.00028047,2]
[311567799,1705252239825,-24429.69,0.00028047,2]
[311567800,1705252239835,-726.34,0.00028047,2]
[311567801,1705252239846,-9497.87,0.00028047,2]
[311567802,1705252239856,-500.0,0.00028047,2]
[311567803,1705252239866,-43293.24,0.00028047,2]
[311567804,1705252239876,-500.0,0.00028047,2]
[311567805,1705252239885,-500.0,0.00028047,2]
[311567806,1705252239894,-500.0,0.00028047,2]
[311567807,1705252239902,-500.0,0.00028047,2]
[311567808,1705252239913,-500.0,0.00028047,2]
[311567809,1705252239923,-1065.8,0.00028047,2]
[311567810,1705252239932,-153.02380808,0.000281,2]
[311567811,1705252239941,-227.97919356,0.0002826,2]
[311567812,1705252239950,-500.0,0.00028318,2]
[311567813,1705252239959,-500.0,0.00028318,2]
[311567814,1705252239968,-2086.67,0.00028321,2]
[311567815,1705252239977,-24429.69,0.00028321,2]
[311567816,1705252239986,-726.34,0.00028321,2]
[311567817,1705252239996,-9497.87,0.00028321,2]
[311567818,1705252240007,-500.0,0.00028321,2]
[311567819,1705252240016,-43293.24,0.00028321,2]
[311567820,1705252240026,-500.0,0.00028321,2]
[311567821,1705252240036,-500.0,0.00028321,2]
[311567822,1705252240046,-500.0,0.00028321,2]
[311567823,1705252240055,-500.0,0.00028321,2]
[311567824,1705252240065,-500.0,0.00028321,2]
[311567825,1705252240074,-1065.8,0.00028321,2]
[311567826,1705252240083,-500.0,0.00028592,2]
[311567827,1705252240092,-500.0,0.00028592,2]
[311567828,1705252240101,-2086.67,0.00028595,2]
[311567829,1705252240111,-24429.69,0.00028595,2]
[311567830,1705252240120,-726.34,0.00028595,2]
[311567831,1705252240129,-9497.87,0.00028595,2]
[311567832,1705252240139,-500.0,0.00028595,2]
[311567833,1705252240149,-43293.24,0.00028595,2]
[311567834,1705252240160,-500.0,0.00028595,2]
[311567835,1705252240169,-500.0,0.00028595,2]
[311567836,1705252240178,-500.0,0.00028595,2]
[311567837,1705252240187,-500.0,0.00028595,2]
[311567838,1705252240197,-500.0,0.00028595,2]
[311567839,1705252240206,-1065.8,0.00028595,2]
[311567840,1705252240215,-168.03312966,0.00028728,2]
[311567841,1705252240224,-227.97919356,0.00028847,2]
[311567842,1705252240233,-14863.79058713,0.00028854,4]
[311567843,1705252240242,-2642.03966984,0.00028859,3]
[311567844,1705252240251,-309.49969602,0.00028864,4]
[311567845,1705252240260,-500.0,0.00028866,2]
[311567846,1705252240269,-597.39930221,0.00028868,4]
[311567847,1705252240279,-366.4195737,0.00028868,4]
[311567848,1705252240288,-477.39420188,0.00028868,4]
[311567849,1705252240297,-500.0,0.00028868,4]
[311567850,1705252240306,-2086.67,0.00028869,2]
[311567851,1705252240315,-24429.69,0.00028869,2]
[311567852,1705252240326,-726.34,0.00028869,2]
[311567853,1705252240336,-9497.87,0.00028869,2]
[311567854,1705252240345,-500.0,0.00028869,2]
[311567855,1705252240354,-43293.24,0.00028869,2]
[311567856,1705252240363,-500.0,0.00028869,2]
[311567857,1705252240372,-500.0,0.00028869,2]
[311567858,1705252240381,-500.0,0.00028869,2]
[311567859,1705252240390,-500.0,0.00028869,2]
[311567860,1705252240400,-500.0,0.00028869,2]
[311567861,1705252240409,-1065.8,0.00028869,2]
[311567862,1705252240418,-241.37743917,0.0002914,2]
[311567863,1705252240427,-2086.67,0.00029143,2]
[311567864,1705252240436,-24429.69,0.00029143,2]
[311567865,1705252240446,-726.34,0.00029143,2]
[311567867,1705252240455,-9497.87,0.00029143,2]
[311567868,1705252240464,-500.0,0.00029143,2]
[311567869,1705252240474,-43293.24,0.00029143,2]
[311567870,1705252240483,-500.0,0.00029143,2]
[311567871,1705252240491,-500.0,0.00029143,2]
[311567872,1705252240500,-500.0,0.00029143,2]
[311567873,1705252240510,-500.0,0.00029143,2]
[311567874,1705252240519,-500.0,0.00029143,2]
[311567875,1705252240529,-1065.8,0.00029143,2]
[311567876,1705252240539,-309.57546178,0.00029351,2]
[311567877,1705252240549,-2086.67,0.00029417,2]
[311567878,1705252240558,-24429.69,0.00029417,2]
[311567879,1705252240567,-726.34,0.00029417,2]
[311567880,1705252240576,-9497.87,0.00029417,2]
[311567882,1705252240659,-537.31070886,0.00029417,2]
[311567883,1705252240669,-43293.24,0.00029417,2]
[311567884,1705252240678,-500.0,0.00029417,2]
[311567885,1705252240687,-500.0,0.00029417,2]
[311567886,1705252240696,-500.0,0.00029417,2]
[311567887,1705252240706,-500.0,0.00029417,2]
[311567888,1705252240716,-500.0,0.00029417,2]
[311567889,1705252240727,-1065.8,0.00029417,2]
[311567890,1705252240737,-227.97919356,0.00029433,2]
[311567891,1705252240747,-2086.67,0.00029691,2]
[311567892,1705252240756,-24429.69,0.00029691,2]
[311567893,1705252240767,-726.34,0.00029691,2]
[311567894,1705252240775,-9497.87,0.00029691,2]
[311567895,1705252240785,-43293.24,0.00029691,2]
[311567896,1705252240794,-500.0,0.00029691,2]
[311567897,1705252240805,-500.0,0.00029691,2]
[311567898,1705252240814,-378.84943896,0.00029691,2]
[311567899,1705252240823,-500.0,0.00029691,2]
[311567900,1705252240832,-500.0,0.00029691,2]
[311567901,1705252240841,-1065.8,0.00029691,2]
[311567902,1705252240850,-152.31739519,0.00029945,2]
[311567903,1705252240860,-2086.67,0.00029965,2]
[311567904,1705252240869,-24429.69,0.00029965,2]
[311567905,1705252240878,-726.34,0.00029965,2]
[311567906,1705252240887,-9497.87,0.00029965,2]
[311567907,1705252240896,-43293.24,0.00029965,2]
[311567908,1705252240906,-500.0,0.00029965,2]
[311567909,1705252240915,-500.0,0.00029965,2]
[311567910,1705252240924,-500.0,0.00029965,2]
[311567911,1705252240933,-500.0,0.00029965,2]
[311567912,1705252240942,-1065.8,0.00029965,2]
[311567913,1705252240951,-171.14,0.00029999,2]
[311567914,1705252240961,-171.14,0.00029999,2]
[311567915,1705252240969,-171.14,0.00029999,2]
[311567916,1705252240980,-171.14,0.00029999,2]
[311567917,1705252240990,-55024.26695833,0.0003,2]
[311567918,1705252240999,-151.0,0.0003,2]
[311567919,1705252241009,-151.0,0.0003,2]
[311567920,1705252241018,-227.97919356,0.0003002,2]
[311567922,1705252241027,-150.59051536,0.0003012,7]
[311567924,1705252241037,-500.0,0.00030136,2]
[311567926,1705252241045,-655.30601003,0.00030137,2]
[311567928,1705252241054,-2086.67,0.00030239,2]
[311567930,1705252241063,-24429.69,0.00030239,2]
[311567932,1705252241073,-726.34,0.00030239,2]
[311567934,1705252241082,-9497.87,0.00030239,2]
[311567936,1705252241091,-43293.24,0.00030239,2]
[311567938,1705252241100,-500.0,0.00030239,2]
[311567940,1705252241109,-500.0,0.00030239,2]
[311567942,1705252241118,-500.0,0.00030239,2]
[311567944,1705252241127,-500.0,0.00030239,2]
[311567945,1705252241136,-1065.8,0.00030239,2]
[311567947,1705252241145,-228.81921753,0.00030398,4]
[311567950,1705252241155,-2086.67,0.00030513,2]
[311567952,1705252241165,-24429.69,0.00030513,2]
[311567954,1705252241174,-726.34,0.00030513,2]
[311567955,1705252241183,-9497.87,0.00030513,2]
[311567957,1705252241192,-43293.24,0.00030513,2]
[311567960,1705252241202,-500.0,0.00030513,2]
[311567961,1705252241211,-500.0,0.00030513,2]
[311567963,1705252241221,-500.0,0.00030513,2]
[311567965,1705252241231,-500.0,0.00030513,2]
[311567967,1705252241240,-1065.8,0.00030513,2]
[311567969,1705252241249,-219.75,0.00030757,30]
[311567971,1705252241258,-150.5,0.00030767,30]
[311567973,1705252241267,-150.5,0.00030777,30]
[311567975,1705252241276,-2086.67,0.00030787,2]
[311567977,1705252241286,-24429.69,0.00030787,2]
[311567979,1705252241294,-726.34,0.00030787,2]
[311567981,1705252241304,-9497.87,0.00030787,2]
[311567983,1705252241314,-43293.24,0.00030787,2]
[311567985,1705252241323,-500.0,0.00030787,2]
[311567987,1705252241332,-500.0,0.00030787,2]
[311567989,1705252241341,-500.0,0.00030787,2]
[311567991,1705252241350,-500.0,0.00030787,2]
[311567993,1705252241359,-1065.8,0.00030787,2]
[311567995,1705252241368,-151.0,0.00030787,2]
[311567996,1705252241377,-151.0,0.00030787,2]
[311567998,1705252241386,-500.0,0.00030969,2]
[311568000,1705252241395,-1425.19,0.00030969,2]
[311568002,1705252241404,-500.0,0.00030999,2]
[311568004,1705252241413,-500.0,0.00030999,2]
[311568006,1705252241422,-500.0,0.00030999,2]
[311568008,1705252241431,-526.06326332,0.00030999,2]
[311568010,1705252241440,-805.31,0.00030999,2]
[311568012,1705252241449,-500.0,0.00030999,2]
[311568014,1705252241459,-500.0,0.00030999,2]
[311568016,1705252241467,-500.0,0.00030999,2]
[311568018,1705252241478,-500.0,0.00030999,2]
[311568020,1705252241487,-500.0,0.00030999,2]
[311568022,1705252241496,-574.05346898,0.00030999,2]
[311568024,1705252241505,-500.0,0.00030999,2]
[311568026,1705252241515,-500.86888601,0.00030999,2]
[311568028,1705252241526,-500.0,0.00030999,2]
[311568030,1705252241535,-500.0,0.00030999,2]
[311568032,1705252241544,-602.80007239,0.00030999,2]
[311568034,1705252241553,-500.0,0.00030999,2]
[311568036,1705252241562,-500.0,0.00030999,2]
[311568038,1705252241571,-500.0,0.00030999,2]
[311568040,1705252241580,-500.0,0.00030999,2]
[311568042,1705252241589,-635.11320063,0.00030999,2]
[311568043,1705252241599,-381.60232911,0.00030999,2]
[311568045,1705252241609,-684.6,0.00030999,2]
[311568047,1705252241618,-500.0,0.00030999,2]
[311568049,1705252241627,-525.54838784,0.00030999,2]
[311568051,1705252241636,-500.0,0.00030999,2]
[311568053,1705252241646,-500.0,0.00030999,2]
[311568055,1705252241655,-500.0,0.00030999,2]
[311568057,1705252241664,-500.0,0.00030999,2]
[311568059,1705252241673,-1940.92,0.00030999,2]
[311568061,1705252241682,-500.0,0.00030999,2]
[311568063,1705252241691,-500.0,0.00030999,2]
[311568065,1705252241701,-178.22237301,0.00030999,2]
[311568067,1705252241710,-500.0,0.00030999,2]
[311568069,1705252241719,-500.0,0.00030999,2]
[311568071,1705252241730,-500.0,0.00030999,2]
[311568073,1705252241739,-500.0,0.00030999,2]
[311568075,1705252241748,-500.0,0.00030999,2]
[311568077,1705252241757,-500.0,0.00030999,2]
[311568079,1705252241766,-572.49159193,0.00030999,2]
[311568081,1705252241775,-500.0,0.00030999,2]
[311568083,1705252241784,-500.0,0.00030999,2]
[311568085,1705252241793,-500.0,0.00030999,2]
[311568087,1705252241802,-572.34395798,0.00030999,2]
[311568089,1705252241810,-559.17037856,0.00030999,2]
[311568091,1705252241819,-232.90343544,0.00030999,2]
[311568093,1705252241828,-500.0,0.00030999,2]
[311568095,1705252241837,-500.0,0.00030999,2]
[311568097,1705252241846,-500.0,0.00030999,2]
[311568099,1705252241855,-2291.76,0.00030999,2]
[311568101,1705252241863,-1984.0,0.00030999,2]
[311568103,1705252241872,-500.0,0.00030999,2]
[311568105,1705252241881,-500.0,0.00030999,2]
[311568107,1705252241890,-500.0,0.00030999,2]
[311568109,1705252241899,-500.0,0.00030999,2]
[311568110,1705252241908,-500.0,0.00030999,2]
[311568112,1705252241917,-639.85514929,0.00030999,2]
[311568114,1705252241927,-500.0,0.00030999,2]
[311568116,1705252241936,-500.0,0.00030999,2]
[311568118,1705252241945,-373.72376298,0.00030999,2]
[311568120,1705252241954,-500.0,0.00030999,2]
[311568122,1705252241963,-674.96,0.00030999,2]
[311568124,1705252241973,-167.86399626,0.00030999,2]
[311568127,1705252241983,-500.0,0.00030999,2]
[311568128,1705252241993,-500.0,0.00030999,2]
[311568130,1705252242002,-500.0,0.00030999,2]
[311568132,1705252242010,-283.19708064,0.00030999,2]
[311568134,1705252242019,-500.0,0.00030999,2]
[311568136,1705252242027,-508.05153115,0.00030999,2]
[311568138,1705252242036,-500.0,0.00030999,2]
[311568140,1705252242045,-500.0,0.00030999,2]
[311568142,1705252242054,-1323.48,0.00030999,2]
[311568144,1705252242063,-500.0,0.00030999,2]
[311568146,1705252242072,-500.0,0.00030999,2]
[311568148,1705252242081,-500.0,0.00030999,2]
[311568150,1705252242090,-500.0,0.00030999,2]
[311568152,1705252242098,-382.37264958,0.00030999,2]
[311568154,1705252242107,-202.62779638,0.00030999,2]
[311568156,1705252242116,-500.0,0.00030999,2]
[311568158,1705252242125,-500.0,0.00030999,2]
[311568160,1705252242134,-500.0,0.00030999,2]
[311568162,1705252242143,-273.96352238,0.00030999,2]
[311568164,1705252242152,-631.39,0.00030999,2]
[311568166,1705252242161,-500.0,0.00030999,2]
[311568168,1705252242170,-500.0,0.00030999,2]
[311568170,1705252242179,-500.0,0.00030999,2]
[311568171,1705252242189,-500.0,0.00030999,2]
[311568172,1705252242198,-500.0,0.00030999,2]
[311568173,1705252242207,-1010.16,0.00030999,2]
[311568174,1705252242216,-500.0,0.00030999,2]
[311568175,1705252242226,-516.52958642,0.00030999,2]
[311568176,1705252242237,-500.0,0.00030999,2]
[311568177,1705252242317,-1354.27,0.00030999,2]
[311568178,1705252242327,-500.0,0.00030999,2]
[311568179,1705252242336,-500.0,0.00030999,2]
[311568180,1705252242345,-529.51465188,0.00030999,2]
[311568181,1705252242355,-500.0,0.00030999,2]
[311568182,1705252242364,-500.0,0.00030999,2]
[311568183,1705252242373,-711.13,0.00030999,2]
[311568184,1705252242382,-500.0,0.00030999,2]
[311568185,1705252242392,-508.708221,0.00030999,2]
[311568186,1705252242402,-500.0,0.00030999,2]
[311568187,1705252242411,-500.0,0.00030999,2]
[311568188,1705252242421,-517.97504312,0.00030999,2]
[311568189,1705252242430,-500.0,0.00030999,2]
[311568190,1705252242440,-300.78084673,0.00030999,2]
[311568191,1705252242450,-500.0,0.00030999,2]
[311568192,1705252242459,-401.34866574,0.00030999,2]
[311568193,1705252242468,-500.0,0.00030999,2]
[311568194,1705252242477,-510.02881008,0.00030999,2]
[311568195,1705252242486,-502.81637563,0.00030999,2]
[311568196,1705252242495,-500.0,0.00030999,2]
[311568197,1705252242504,-500.0,0.00030999,2]
[311568198,1705252242514,-500.0,0.00030999,2]
[311568199,1705252242523,-500.0,0.00030999,2]
[311568200,1705252242532,-500.0,0.00030999,2]
[311568201,1705252242541,-501.06284835,0.00030999,2]
[311568202,1705252242551,-500.0,0.00030999,2]
[311568203,1705252242560,-500.0,0.00030999,2]
[311568204,1705252242569,-500.0,0.00030999,2]
[311568205,1705252242578,-500.0,0.00030999,2]
[311568206,1705252242586,-500.0,0.00030999,2]
[311568207,1705252242595,-500.0,0.00030999,2]
[311568208,1705252242605,-500.0,0.00030999,2]
[311568210,1705252242614,-500.0,0.00030999,2]
[311568211,1705252242622,-500.0,0.00030999,2]
[311568213,1705252242632,-500.0,0.00030999,2]
[311568215,1705252242641,-500.0,0.00030999,2]
[311568217,1705252242650,-500.0,0.00030999,2]
[311568219,1705252242659,-500.0,0.00030999,2]
[311568221,1705252242668,-500.0,0.00030999,2]
[311568223,1705252242677,-905.29,0.00030999,2]
[311568225,1705252242687,-500.0,0.00030999,2]
[311568227,1705252242696,-500.0,0.00030999,2]
[311568230,1705252242705,-500.0,0.00030999,2]
[311568234,1705252242715,-500.0,0.00030999,2]
[311568237,1705252242724,-500.0,0.00030999,2]
[311568241,1705252242735,-500.0,0.00030999,2]
[311568244,1705252242744,-500.0,0.00030999,2]
[311568247,1705252242755,-714.98,0.00030999,2]
[311568251,1705252242764,-325.94231733,0.00030999,2]
[311568253,1705252242773,-500.0,0.00030999,2]
[311568255,1705252242782,-500.0,0.00030999,2]
[311568257,1705252242791,-500.0,0.00030999,2]
[311568260,1705252242801,-500.0,0.00030999,2]
[311568263,1705252242810,-500.0,0.00030999,2]
[311568266,1705252242820,-551.67974669,0.00030999,2]
[311568269,1705252242829,-500.0,0.00030999,2]
[311568272,1705252242838,-500.0,0.00030999,2]
[311568275,1705252242847,-501.50194753,0.00030999,2]
[311568278,1705252242856,-500.0,0.00030999,2]
[311568281,1705252242864,-500.0,0.00030999,2]
[311568284,1705252242873,-2086.67,0.00031061,2]
[311568287,1705252242882,-24429.69,0.00031061,2]
[311568290,1705252242891,-726.34,0.00031061,2]
[311568293,1705252242900,-9497.87,0.00031061,2]
[311568296,1705252242909,-43293.24,0.00031061,2]
[311568299,1705252242918,-500.0,0.00031061,2]
[311568302,1705252242927,-500.0,0.00031061,2]
[311568304,1705252242938,-500.0,0.00031061,2]
[311568307,1705252242947,-504.49424522,0.00031061,2]
[311568310,1705252242956,-1065.8,0.00031061,2]
[311568313,1705252242965,-151.0,0.00031061,2]
[311568316,1705252242973,-151.0,0.00031061,2]
[311568319,1705252242983,-501.05607679,0.00031273,2]
[311568322,1705252242992,-500.0,0.00031273,2]
[311568324,1705252243001,-500.0,0.00031273,2]
[311568327,1705252243010,-805.31,0.00031273,2]
[311568329,1705252243019,-502.59733656,0.00031273,2]
[311568332,1705252243029,-550.06570778,0.00031273,2]
[311568334,1705252243038,-500.0,0.00031273,2]
[311568336,1705252243047,-501.30116586,0.00031273,2]
[311568338,1705252243056,-500.0,0.00031273,2]
[311568340,1705252243065,-500.0,0.00031273,2]
[311568342,1705252243074,-500.0,0.00031273,2]
[311568344,1705252243083,-500.0,0.00031273,2]
[311568346,1705252243092,-500.0,0.00031273,2]
[311568348,1705252243101,-565.50137611,0.00031273,2]
[311568350,1705252243110,-500.0,0.00031273,2]
[311568352,1705252243119,-538.42213819,0.00031273,2]
[311568354,1705252243129,-684.6,0.00031273,2]
[311568356,1705252243138,-500.0,0.00031273,2]
[311568358,1705252243147,-323.46114745,0.00031273,2]
[311568360,1705252243156,-537.38332628,0.00031273,2]
[311568362,1705252243165,-500.0,0.00031273,2]
[311568364,1705252243174,-500.0,0.00031273,2]
[311568365,1705252243183,-1940.92,0.00031273,2]
[311568367,1705252243193,-500.0,0.00031273,2]
[311568369,1705252243202,-614.17691593,0.00031273,2]
[311568371,1705252243211,-500.0,0.00031273,2]
[311568374,1705252243221,-500.0,0.00031273,2]
[311568376,1705252243231,-500.0,0.00031273,2]
[311568378,1705252243240,-500.0,0.00031273,2]
[311568379,1705252243249,-355.23069311,0.00031273,2]
[311568381,1705252243259,-500.0,0.00031273,2]
[311568383,1705252243268,-500.0,0.00031273,2]
[311568385,1705252243277,-500.0,0.00031273,2]
[311568387,1705252243286,-500.0,0.00031273,2]
[311568389,1705252243296,-500.0,0.00031273,2]
[311568391,1705252243305,-500.0,0.00031273,2]
[311568393,1705252243315,-2291.76,0.00031273,2]
[311568395,1705252243324,-1984.0,0.00031273,2]
[311568397,1705252243336,-500.0,0.00031273,2]
[311568399,1705252243346,-500.0,0.00031273,2]
[311568402,1705252243355,-500.0,0.00031273,2]
[311568403,1705252243364,-500.0,0.00031273,2]
[311568405,1705252243373,-508.13856034,0.00031273,2]
[311568407,1705252243383,-500.0,0.00031273,2]
[311568409,1705252243392,-459.31432045,0.00031273,2]
[311568411,1705252243402,-500.0,0.00031273,2]
[311568413,1705252243411,-674.96,0.00031273,2]
[311568415,1705252243420,-500.0,0.00031273,2]
[311568417,1705252243429,-500.0,0.00031273,2]
[311568419,1705252243438,-500.0,0.00031273,2]
[311568421,1705252243447,-522.20027659,0.00031273,2]
[311568423,1705252243456,-500.0,0.00031273,2]
[311568425,1705252243465,-500.0,0.00031273,2]
[311568427,1705252243474,-1323.48,0.00031273,2]
[311568429,1705252243483,-500.0,0.00031273,2]
[311568431,1705252243492,-500.0,0.00031273,2]
[311568433,1705252243505,-500.0,0.00031273,2]
[311568435,1705252243515,-500.32041924,0.00031273,2]
[311568437,1705252243525,-500.0,0.00031273,2]
[311568439,1705252243534,-500.0,0.00031273,2]
[311568441,1705252243544,-500.0,0.00031273,2]
[311568443,1705252243553,-631.39,0.00031273,2]
[311568446,1705252243562,-500.0,0.00031273,2]
[311568447,1705252243572,-500.0,0.00031273,2]
[311568449,1705252243581,-500.0,0.00031273,2]
[311568451,1705252243589,-500.0,0.00031273,2]
[311568453,1705252243599,-500.0,0.00031273,2]
[311568455,1705252243607,-1010.16,0.00031273,2]
[311568457,1705252243617,-500.0,0.00031273,2]
[311568459,1705252243626,-500.0,0.00031273,2]
[311568461,1705252243635,-1354.27,0.00031273,2]
[311568463,1705252243645,-500.0,0.00031273,2]
[311568465,1705252243654,-500.0,0.00031273,2]
[311568467,1705252243663,-500.0,0.00031273,2]
[311568469,1705252243672,-500.0,0.00031273,2]
[311568471,1705252243681,-711.13,0.00031273,2]
[311568473,1705252243690,-500.0,0.00031273,2]
[311568475,1705252243699,-500.0,0.00031273,2]
[311568477,1705252243708,-500.0,0.00031273,2]
[311568479,1705252243717,-501.41343629,0.00031273,2]
[311568481,1705252243727,-500.0,0.00031273,2]
[311568483,1705252243736,-500.0,0.00031273,2]
[311568485,1705252243745,-500.0,0.00031273,2]
[311568487,1705252243754,-296.42767224,0.00031273,2]
[311568489,1705252243763,-500.0,0.00031273,2]
[311568491,1705252243772,-500.0,0.00031273,2]
[311568493,1705252243781,-500.0,0.00031273,2]
[311568502,1705252243856,-428.8409721,0.00031273,2]
[311568504,1705252243865,-500.0,0.00031273,2]
[311568506,1705252243874,-500.0,0.00031273,2]
[311568508,1705252243884,-500.0,0.00031273,2]
[311568510,1705252243893,-500.0,0.00031273,2]
[311568512,1705252243903,-500.0,0.00031273,2]
[311568514,1705252243911,-500.0,0.00031273,2]
[311568516,1705252243921,-500.0,0.00031273,2]
[311568518,1705252243930,-500.0,0.00031273,2]
[311568520,1705252243939,-500.0,0.00031273,2]
[311568522,1705252243948,-500.0,0.00031273,2]
[311568524,1705252243958,-500.0,0.00031273,2]
[311568526,1705252243967,-531.88738807,0.00031273,2]
[311568528,1705252243977,-500.0,0.00031273,2]